[Event "Titled Tuesday Blitz May 03 Early 2022"]
[White "Hirneise, Jens"]
[Black "Kozak, Antoni"]
[WhiteFideId "24614734"]
[BlackFideId "21832030"]
[WhiteElo "2359"]
[BlackElo "2236"]
[Result "1-0"]
[Round "06"]
[TimeControl "180+1"]
[Date "2022.05.03"]
[WhiteClock "0:00:18"]
[BlackClock "0:00:23"]

1. e4 {[%clk 0:02:59]}  c6 {[%clk 0:02:57]} 2. Nf3 {[%clk 0:02:52]}  d5 {[%clk 0:02:56]} 3. d3 {[%clk 0:02:52]}  Bg4 {[%clk 0:02:50]} 4. Nbd2 {[%clk 0:02:50]}  e6 {[%clk 0:02:48]} 5. Be2 {[%clk 0:02:50]}  Nf6 {[%clk 0:02:48]} 6. O-O {[%clk 0:02:49]}  Be7 {[%clk 0:02:42]} 7. b3 {[%clk 0:02:49]}  O-O {[%clk 0:02:41]} 8. Bb2 {[%clk 0:02:49]}  c5 {[%clk 0:02:41]} 9. Ne5 {[%clk 0:02:44]}  Bxe2 {[%clk 0:02:41]} 10. Qxe2 {[%clk 0:02:45]}  Nbd7 {[%clk 0:02:31]} 11. Nxd7 {[%clk 0:02:38]}  Nxd7 {[%clk 0:02:27]} 12. e5 {[%clk 0:02:29]}  b5 {[%clk 0:02:12]} 13. f4 {[%clk 0:02:25]}  c4 {[%clk 0:02:06]} 14. dxc4 {[%clk 0:02:21]}  bxc4 {[%clk 0:02:05]} 15. Kh1 {[%clk 0:02:20]}  cxb3 {[%clk 0:02:00]} 16. axb3 {[%clk 0:02:17]}  Qc7 {[%clk 0:01:53]} 17. Nf3 {[%clk 0:02:01]}  Rfc8 {[%clk 0:01:50]} 18. Nd4 {[%clk 0:01:58]}  Bc5 {[%clk 0:01:49]} 19. Nb5 {[%clk 0:01:57]}  Qb6 {[%clk 0:01:42]} 20. f5 {[%clk 0:01:54]}  a6 {[%clk 0:01:41]} 21. Nc3 {[%clk 0:01:39]}  exf5 {[%clk 0:01:26]} 22. Nxd5 {[%clk 0:01:36]}  Qe6 {[%clk 0:01:20]} 23. Nf4 {[%clk 0:01:35]}  Qe8 {[%clk 0:01:18]} 24. e6 {[%clk 0:01:25]}  Nf8 {[%clk 0:01:14]} 25. exf7+ {[%clk 0:01:14]}  Qxf7 {[%clk 0:01:11]} 26. Rxa6 {[%clk 0:01:14]}  Rxa6 {[%clk 0:01:01]} 27. Qxa6 {[%clk 0:01:15]}  Rd8 {[%clk 0:00:51]} 28. Qa5 {[%clk 0:01:00]}  Be7 {[%clk 0:00:50]} 29. Re1 {[%clk 0:00:42]}  Bg5 {[%clk 0:00:48]} 30. Nd3 {[%clk 0:00:40]}  h6 {[%clk 0:00:37]} 31. Rf1 {[%clk 0:00:35]}  Rd5 {[%clk 0:00:32]} 32. Qa8 {[%clk 0:00:33]}  Be3 {[%clk 0:00:29]} 33. Ne5 {[%clk 0:00:28]}  Qe6 {[%clk 0:00:25]} 34. Nc4 {[%clk 0:00:22]}  f4 {[%clk 0:00:22]} 35. Nxe3 {[%clk 0:00:18]}  fxe3 {[%clk 0:00:23]} 36. Qxf8+ {[%clk 0:00:18]} 1-0


[Site "https://www.chess.com"]

[Event "Titled Tuesday Blitz May 03 Early 2022"]
[White "Hoffmann, Asa"]
[Black "Van den Dikkenberg, Erik"]
[WhiteFideId "2001470"]
[BlackFideId "1005880"]
[WhiteElo "2117"]
[BlackElo "2118"]
[Result "1-0"]
[Round "06"]
[TimeControl "180+1"]
[Date "2022.05.03"]
[WhiteClock "0:00:38"]
[BlackClock "0:00:12"]

1. d4 {[%clk 0:02:51]}  Nf6 {[%clk 0:02:58]} 2. Bg5 {[%clk 0:02:49]}  Ne4 {[%clk 0:02:58]} 3. Bf4 {[%clk 0:02:48]}  d5 {[%clk 0:02:57]} 4. f3 {[%clk 0:02:48]}  Nf6 {[%clk 0:02:57]} 5. e4 {[%clk 0:02:48]}  c6 {[%clk 0:02:57]} 6. e5 {[%clk 0:02:47]}  Nfd7 {[%clk 0:02:56]} 7. Be3 {[%clk 0:02:47]}  Nb6 {[%clk 0:02:55]} 8. f4 {[%clk 0:02:46]}  Bf5 {[%clk 0:02:55]} 9. Nf3 {[%clk 0:02:45]}  h5 {[%clk 0:02:54]} 10. h3 {[%clk 0:02:45]}  e6 {[%clk 0:02:54]} 11. Bd3 {[%clk 0:02:41]}  Bxd3 {[%clk 0:02:53]} 12. Qxd3 {[%clk 0:02:41]}  h4 {[%clk 0:02:52]} 13. Nbd2 {[%clk 0:02:39]}  N8d7 {[%clk 0:02:51]} 14. f5 {[%clk 0:02:37]}  Nc4 {[%clk 0:02:47]} 15. fxe6 {[%clk 0:02:34]}  Nxe3 {[%clk 0:02:43]} 16. exf7+ {[%clk 0:02:33]}  Kxf7 {[%clk 0:02:43]} 17. Qxe3 {[%clk 0:02:31]}  Nb6 {[%clk 0:02:37]} 18. O-O {[%clk 0:02:29]}  Kg8 {[%clk 0:02:37]} 19. Ng5 {[%clk 0:02:24]}  Rh5 {[%clk 0:02:23]} 20. Rf5 {[%clk 0:02:02]}  g6 {[%clk 0:01:59]} 21. Ne6 {[%clk 0:01:57]}  Qe7 {[%clk 0:01:54]} 22. Rxh5 {[%clk 0:01:56]}  gxh5 {[%clk 0:01:35]} 23. Nxf8 {[%clk 0:01:44]}  Rxf8 {[%clk 0:01:32]} 24. Rf1 {[%clk 0:01:43]}  Rxf1+ {[%clk 0:01:29]} 25. Kxf1 {[%clk 0:01:42]}  Qb4 {[%clk 0:01:27]} 26. b3 {[%clk 0:01:39]}  Qa3 {[%clk 0:01:18]} 27. e6 {[%clk 0:01:30]}  Nc8 {[%clk 0:01:14]} 28. Nf3 {[%clk 0:01:24]}  Qe7 {[%clk 0:01:05]} 29. Qh6 {[%clk 0:01:17]}  Nd6 {[%clk 0:01:03]} 30. Ne5 {[%clk 0:01:13]}  Ne4 {[%clk 0:00:45]} 31. Qg6+ {[%clk 0:00:57]}  Kh8 {[%clk 0:00:41]} 32. Qxe4 {[%clk 0:00:56]}  Qf6+ {[%clk 0:00:20]} 33. Qf3 {[%clk 0:00:53]}  Qxe6 {[%clk 0:00:19]} 34. Qxh5+ {[%clk 0:00:53]}  Kg7 {[%clk 0:00:18]} 35. Qxh4 {[%clk 0:00:50]}  Qf5+ {[%clk 0:00:17]} 36. Qf2 {[%clk 0:00:49]}  Qe4 {[%clk 0:00:16]} 37. Kg1 {[%clk 0:00:45]}  c5 {[%clk 0:00:16]} 38. Qf7+ {[%clk 0:00:44]}  Kh6 {[%clk 0:00:14]} 39. Qg6+ {[%clk 0:00:40]}  Qxg6 {[%clk 0:00:13]} 40. Nxg6 {[%clk 0:00:40]}  Kxg6 {[%clk 0:00:14]} 41. dxc5 {[%clk 0:00:40]}  Kf5 {[%clk 0:00:14]} 42. Kf2 {[%clk 0:00:40]}  Ke4 {[%clk 0:00:15]} 43. h4 {[%clk 0:00:39]}  Kf4 {[%clk 0:00:13]} 44. c3 {[%clk 0:00:38]}  Kg4 {[%clk 0:00:12]} 45. g3 {[%clk 0:00:38]} 1-0


[Site "https://www.chess.com"]

[Event "Titled Tuesday Blitz May 03 Early 2022"]
[White "Jakubowski, Krzysztof"]
[Black "Bach, Ngoc Thuy Duong"]
[WhiteFideId "1112848"]
[BlackFideId "12408956"]
[WhiteElo "2365"]
[BlackElo "1862"]
[Result "1-0"]
[Round "06"]
[TimeControl "180+1"]
[Date "2022.05.03"]
[WhiteClock "0:00:24"]
[BlackClock "0:00:10"]

1. e4 {[%clk 0:03:00]}  c5 {[%clk 0:02:59]} 2. Nf3 {[%clk 0:02:59]}  d6 {[%clk 0:03:00]} 3. d4 {[%clk 0:02:58]}  cxd4 {[%clk 0:03:01]} 4. Nxd4 {[%clk 0:02:59]}  Nf6 {[%clk 0:03:01]} 5. Nc3 {[%clk 0:02:58]}  a6 {[%clk 0:03:01]} 6. Be2 {[%clk 0:02:58]}  e5 {[%clk 0:03:00]} 7. Nb3 {[%clk 0:02:58]}  Be7 {[%clk 0:03:01]} 8. O-O {[%clk 0:02:57]}  O-O {[%clk 0:03:00]} 9. Kh1 {[%clk 0:02:56]}  Qc7 {[%clk 0:03:00]} 10. a4 {[%clk 0:02:53]}  Be6 {[%clk 0:02:59]} 11. g4 {[%clk 0:02:51]}  d5 {[%clk 0:02:44]} 12. Nxd5 {[%clk 0:02:42]}  Bxd5 {[%clk 0:02:43]} 13. exd5 {[%clk 0:02:42]}  Rd8 {[%clk 0:02:41]} 14. c4 {[%clk 0:02:41]}  Nbd7 {[%clk 0:02:41]} 15. f4 {[%clk 0:02:14]}  Bd6 {[%clk 0:02:13]} 16. g5 {[%clk 0:01:57]}  Ne4 {[%clk 0:02:08]} 17. f5 {[%clk 0:01:54]}  f6 {[%clk 0:01:51]} 18. g6 {[%clk 0:01:48]}  h6 {[%clk 0:01:50]} 19. a5 {[%clk 0:01:45]}  Ndc5 {[%clk 0:01:47]} 20. Be3 {[%clk 0:01:42]}  Rac8 {[%clk 0:01:12]} 21. Kg2 {[%clk 0:01:08]}  Qe7 {[%clk 0:01:11]} 22. Nc1 {[%clk 0:01:04]}  Nd7 {[%clk 0:00:36]} 23. Qc2 {[%clk 0:00:47]}  Ng5 {[%clk 0:00:26]} 24. h4 {[%clk 0:00:45]}  e4 {[%clk 0:00:21]} 25. hxg5 {[%clk 0:00:42]}  hxg5 {[%clk 0:00:22]} 26. Bd4 {[%clk 0:00:27]}  Bb8 {[%clk 0:00:11]} 27. Qc3 {[%clk 0:00:24]}  Qd6 {[%clk 0:00:10]} 28. Qh3 {[%clk 0:00:24]} 1-0


[Site "https://www.chess.com"]

[Event "Titled Tuesday Blitz May 03 Early 2022"]
[White "Janaszak, Dawid"]
[Black "Zhao, Jun"]
[WhiteFideId "1119206"]
[BlackFideId "8602522"]
[WhiteElo "2199"]
[BlackElo "2547"]
[Result "1-0"]
[Round "06"]
[TimeControl "180+1"]
[Date "2022.05.03"]
[WhiteClock "0:01:05"]
[BlackClock "0:01:14"]

1. e4 {[%clk 0:03:00]}  d5 {[%clk 0:02:52]} 2. exd5 {[%clk 0:03:00]}  Qxd5 {[%clk 0:02:52]} 3. Nf3 {[%clk 0:03:00]}  Nf6 {[%clk 0:02:52]} 4. Nc3 {[%clk 0:02:59]}  Qd6 {[%clk 0:02:52]} 5. Nb5 {[%clk 0:02:54]}  Qd8 {[%clk 0:02:50]} 6. d4 {[%clk 0:02:54]}  c6 {[%clk 0:02:50]} 7. Na3 {[%clk 0:02:54]}  Bf5 {[%clk 0:02:46]} 8. Nc4 {[%clk 0:02:52]}  e6 {[%clk 0:02:46]} 9. Bf4 {[%clk 0:02:47]}  Be7 {[%clk 0:02:45]} 10. h3 {[%clk 0:02:45]}  O-O {[%clk 0:02:44]} 11. Be2 {[%clk 0:02:45]}  Nbd7 {[%clk 0:02:41]} 12. O-O {[%clk 0:02:43]}  Nb6 {[%clk 0:02:41]} 13. c3 {[%clk 0:02:36]}  Nxc4 {[%clk 0:02:39]} 14. Bxc4 {[%clk 0:02:37]}  Nd5 {[%clk 0:02:39]} 15. Bh2 {[%clk 0:02:33]}  Qb6 {[%clk 0:02:34]} 16. Qb3 {[%clk 0:02:29]}  Rfd8 {[%clk 0:02:29]} 17. Rfe1 {[%clk 0:02:29]}  Bd6 {[%clk 0:02:21]} 18. Bxd6 {[%clk 0:02:27]}  Rxd6 {[%clk 0:02:22]} 19. Ne5 {[%clk 0:02:26]}  Rad8 {[%clk 0:02:21]} 20. Bf1 {[%clk 0:02:23]}  Qxb3 {[%clk 0:02:16]} 21. axb3 {[%clk 0:02:23]}  a6 {[%clk 0:02:17]} 22. b4 {[%clk 0:02:19]}  h6 {[%clk 0:02:12]} 23. Nc4 {[%clk 0:02:17]}  R6d7 {[%clk 0:02:11]} 24. Ne5 {[%clk 0:02:17]}  Rc7 {[%clk 0:02:09]} 25. Bd3 {[%clk 0:02:14]}  Bxd3 {[%clk 0:02:08]} 26. Nxd3 {[%clk 0:02:15]}  Kf8 {[%clk 0:02:09]} 27. Nc5 {[%clk 0:02:15]}  Rd6 {[%clk 0:02:06]} 28. g3 {[%clk 0:02:10]}  Nf6 {[%clk 0:02:05]} 29. Kg2 {[%clk 0:02:08]}  Nd7 {[%clk 0:02:04]} 30. h4 {[%clk 0:01:57]}  Nxc5 {[%clk 0:02:00]} 31. bxc5 {[%clk 0:01:57]}  Rd5 {[%clk 0:02:01]} 32. f4 {[%clk 0:01:50]}  Rcd7 {[%clk 0:01:54]} 33. Kf3 {[%clk 0:01:49]}  h5 {[%clk 0:01:52]} 34. Re5 {[%clk 0:01:48]}  g6 {[%clk 0:01:53]} 35. Rae1 {[%clk 0:01:44]}  Ke7 {[%clk 0:01:51]} 36. R1e2 {[%clk 0:01:43]}  Kd8 {[%clk 0:01:50]} 37. Re1 {[%clk 0:01:43]}  Kc7 {[%clk 0:01:50]} 38. g4 {[%clk 0:01:39]}  hxg4+ {[%clk 0:01:48]} 39. Kxg4 {[%clk 0:01:40]}  Rd8 {[%clk 0:01:42]} 40. Rh1 {[%clk 0:01:36]}  Kd7 {[%clk 0:01:39]} 41. Rh2 {[%clk 0:01:33]}  Ke7 {[%clk 0:01:39]} 42. Rhe2 {[%clk 0:01:29]}  Kf6 {[%clk 0:01:39]} 43. Rg5 {[%clk 0:01:24]}  Rh8 {[%clk 0:01:34]} 44. Rxd5 {[%clk 0:01:20]}  exd5 {[%clk 0:01:31]} 45. b4 {[%clk 0:01:16]}  Rd8 {[%clk 0:01:27]} 46. Re1 {[%clk 0:01:15]}  Rh8 {[%clk 0:01:26]} 47. Re2 {[%clk 0:01:15]}  Rd8 {[%clk 0:01:26]} 48. Re1 {[%clk 0:01:15]}  Ra8 {[%clk 0:01:26]} 49. Ra1 {[%clk 0:01:14]}  Re8 {[%clk 0:01:25]} 50. Kf3 {[%clk 0:01:06]}  Kf5 {[%clk 0:01:25]} 51. Rg1 {[%clk 0:01:06]}  Re1 {[%clk 0:01:14]} 52. Rxe1 {[%clk 0:01:05]} 1-0


[Site "https://www.chess.com"]

[Event "Titled Tuesday Blitz May 03 Early 2022"]
[White "Jaracz, Pawel"]
[Black "Iljin, Timofey"]
[WhiteFideId "1102222"]
[BlackFideId "14110180"]
[WhiteElo "2429"]
[BlackElo "2396"]
[Result "0-1"]
[Round "06"]
[TimeControl "180+1"]
[Date "2022.05.03"]
[WhiteClock "0:00:02"]
[BlackClock "0:00:03"]

1. d4 {[%clk 0:03:00]}  d5 {[%clk 0:02:59]} 2. c4 {[%clk 0:03:00]}  e6 {[%clk 0:02:59]} 3. Nf3 {[%clk 0:03:00]}  Nf6 {[%clk 0:02:59]} 4. Nc3 {[%clk 0:03:00]}  Bb4 {[%clk 0:02:59]} 5. Qa4+ {[%clk 0:02:59]}  Nc6 {[%clk 0:02:59]} 6. e3 {[%clk 0:02:59]}  O-O {[%clk 0:03:00]} 7. Qc2 {[%clk 0:02:55]}  b6 {[%clk 0:02:54]} 8. cxd5 {[%clk 0:02:50]}  exd5 {[%clk 0:02:55]} 9. Bd3 {[%clk 0:02:49]}  Bd6 {[%clk 0:02:50]} 10. a3 {[%clk 0:02:47]}  a6 {[%clk 0:02:50]} 11. O-O {[%clk 0:02:47]}  Bb7 {[%clk 0:02:50]} 12. b4 {[%clk 0:02:46]}  a5 {[%clk 0:02:40]} 13. b5 {[%clk 0:02:45]}  Ne7 {[%clk 0:02:39]} 14. a4 {[%clk 0:02:44]}  Ng6 {[%clk 0:02:38]} 15. Ba3 {[%clk 0:02:43]}  Bxa3 {[%clk 0:02:33]} 16. Rxa3 {[%clk 0:02:43]}  Re8 {[%clk 0:02:34]} 17. Rc1 {[%clk 0:02:41]}  Qd6 {[%clk 0:02:27]} 18. Nb1 {[%clk 0:02:41]}  Ne4 {[%clk 0:02:12]} 19. Qb2 {[%clk 0:02:30]}  Rac8 {[%clk 0:02:03]} 20. Nbd2 {[%clk 0:02:30]}  f5 {[%clk 0:01:57]} 21. g3 {[%clk 0:02:23]}  Rf8 {[%clk 0:01:34]} 22. Ne5 {[%clk 0:02:11]}  Nxe5 {[%clk 0:01:28]} 23. dxe5 {[%clk 0:02:11]}  Qg6 {[%clk 0:01:29]} 24. f3 {[%clk 0:01:51]}  Nc5 {[%clk 0:01:26]} 25. Bb1 {[%clk 0:01:49]}  Qe6 {[%clk 0:01:19]} 26. Ba2 {[%clk 0:01:46]}  Kh8 {[%clk 0:01:12]} 27. Qd4 {[%clk 0:01:44]}  Rfe8 {[%clk 0:01:07]} 28. f4 {[%clk 0:01:41]}  Qe7 {[%clk 0:01:00]} 29. Qb2 {[%clk 0:01:22]}  Ne6 {[%clk 0:00:56]} 30. Nf3 {[%clk 0:01:23]}  d4 {[%clk 0:00:52]} 31. exd4 {[%clk 0:00:47]}  Qb4 {[%clk 0:00:26]} 32. Qxb4 {[%clk 0:00:42]}  axb4 {[%clk 0:00:27]} 33. Bxe6 {[%clk 0:00:30]}  bxa3 {[%clk 0:00:26]} 34. Bxc8 {[%clk 0:00:30]}  Rxc8 {[%clk 0:00:22]} 35. Nd2 {[%clk 0:00:29]}  Bd5 {[%clk 0:00:15]} 36. Nf1 {[%clk 0:00:17]}  Ra8 {[%clk 0:00:10]} 37. Ne3 {[%clk 0:00:17]}  Bb3 {[%clk 0:00:10]} 38. d5 {[%clk 0:00:15]}  a2 {[%clk 0:00:10]} 39. Kf2 {[%clk 0:00:08]}  Rxa4 {[%clk 0:00:08]} 40. Rxc7 {[%clk 0:00:07]}  Kg8 {[%clk 0:00:05]} 41. d6 {[%clk 0:00:05]}  a1=Q {[%clk 0:00:02]} 42. Kf3 {[%clk 0:00:03]}  Bd5+ {[%clk 0:00:02]} 43. Nxd5 {[%clk 0:00:03]}  Qh1+ {[%clk 0:00:01]} 44. Ke3 {[%clk 0:00:03]}  Qxd5 {[%clk 0:00:02]} 45. Rc8+ {[%clk 0:00:03]}  Kf7 {[%clk 0:00:02]} 46. Rc3 {[%clk 0:00:04]}  Rb4 {[%clk 0:00:01]} 47. Kf2 {[%clk 0:00:03]}  Re4 {[%clk 0:00:02]} 48. Rc7+ {[%clk 0:00:03]}  Ke8 {[%clk 0:00:02]} 49. Rc2 {[%clk 0:00:03]}  Qd4+ {[%clk 0:00:02]} 50. Kg2 {[%clk 0:00:04]}  Qd5 {[%clk 0:00:02]} 51. Kh3 {[%clk 0:00:04]}  Rc4 {[%clk 0:00:03]} 52. Ra2 {[%clk 0:00:04]}  Rc8 {[%clk 0:00:03]} 53. Ra7 {[%clk 0:00:04]}  Qe6 {[%clk 0:00:03]} 54. Rxg7 {[%clk 0:00:02]}  Qh6+ {[%clk 0:00:03]} 0-1


[Site "https://www.chess.com"]

[Event "Titled Tuesday Blitz May 03 Early 2022"]
[White "Jian, Alex"]
[Black "Vusatiuk, Vladimir"]
[WhiteFideId "30901022"]
[BlackFideId "14118610"]
[WhiteElo "2111"]
[BlackElo "2157"]
[Result "0-1"]
[Round "06"]
[TimeControl "180+1"]
[Date "2022.05.03"]
[WhiteClock "0:00:01"]
[BlackClock "0:00:01"]

1. d4 {[%clk 0:03:00]}  Nf6 {[%clk 0:02:56]} 2. c4 {[%clk 0:03:00]}  e6 {[%clk 0:02:56]} 3. Nc3 {[%clk 0:03:01]}  Bb4 {[%clk 0:02:56]} 4. Qc2 {[%clk 0:03:01]}  O-O {[%clk 0:02:56]} 5. a3 {[%clk 0:03:01]}  Bxc3+ {[%clk 0:02:56]} 6. Qxc3 {[%clk 0:03:02]}  b6 {[%clk 0:02:52]} 7. Bg5 {[%clk 0:03:01]}  Bb7 {[%clk 0:02:43]} 8. f3 {[%clk 0:03:01]}  d5 {[%clk 0:02:39]} 9. e3 {[%clk 0:03:00]}  Nbd7 {[%clk 0:02:35]} 10. cxd5 {[%clk 0:02:59]}  exd5 {[%clk 0:02:35]} 11. Bd3 {[%clk 0:02:59]}  Re8 {[%clk 0:02:29]} 12. Ne2 {[%clk 0:02:59]}  h6 {[%clk 0:02:29]} 13. Bh4 {[%clk 0:02:58]}  Rxe3 {[%clk 0:02:18]} 14. Bxf6 {[%clk 0:02:57]}  Nxf6 {[%clk 0:02:00]} 15. Bh7+ {[%clk 0:02:56]}  Kxh7 {[%clk 0:02:01]} 16. Qxe3 {[%clk 0:02:57]}  Qd6 {[%clk 0:01:55]} 17. O-O {[%clk 0:02:38]}  Re8 {[%clk 0:01:53]} 18. Qd2 {[%clk 0:02:37]}  c5 {[%clk 0:01:32]} 19. Rfe1 {[%clk 0:02:30]}  c4 {[%clk 0:01:32]} 20. Ng3 {[%clk 0:02:14]}  Rxe1+ {[%clk 0:01:28]} 21. Rxe1 {[%clk 0:02:13]}  Bc8 {[%clk 0:01:29]} 22. Re5 {[%clk 0:01:54]}  g6 {[%clk 0:01:08]} 23. Qb4 {[%clk 0:01:43]}  Qxb4 {[%clk 0:01:06]} 24. axb4 {[%clk 0:01:44]}  Be6 {[%clk 0:01:06]} 25. Ne2 {[%clk 0:01:38]}  Nd7 {[%clk 0:01:03]} 26. Re3 {[%clk 0:01:38]}  g5 {[%clk 0:01:01]} 27. Ra3 {[%clk 0:01:36]}  a5 {[%clk 0:00:54]} 28. bxa5 {[%clk 0:01:35]}  bxa5 {[%clk 0:00:55]} 29. Rxa5 {[%clk 0:01:34]}  Kg6 {[%clk 0:00:46]} 30. Nc3 {[%clk 0:01:31]}  Nf6 {[%clk 0:00:40]} 31. Kf2 {[%clk 0:01:21]}  h5 {[%clk 0:00:39]} 32. Ke3 {[%clk 0:01:13]}  Kf5 {[%clk 0:00:29]} 33. Ne4 {[%clk 0:00:57]}  Ne8 {[%clk 0:00:22]} 34. Nc5 {[%clk 0:00:45]}  Nd6 {[%clk 0:00:18]} 35. Nxe6 {[%clk 0:00:42]}  fxe6 {[%clk 0:00:19]} 36. Ra6 {[%clk 0:00:36]}  Ne8 {[%clk 0:00:19]} 37. h3 {[%clk 0:00:32]}  h4 {[%clk 0:00:19]} 38. Ra8 {[%clk 0:00:29]}  Nc7 {[%clk 0:00:17]} 39. Rf8+ {[%clk 0:00:27]}  Kg6 {[%clk 0:00:17]} 40. Rc8 {[%clk 0:00:24]}  Nb5 {[%clk 0:00:18]} 41. Rc6 {[%clk 0:00:20]}  Kf5 {[%clk 0:00:18]} 42. Rb6 {[%clk 0:00:19]}  Nc7 {[%clk 0:00:17]} 43. Rb7 {[%clk 0:00:18]}  Ne8 {[%clk 0:00:17]} 44. Rb8 {[%clk 0:00:17]}  Nd6 {[%clk 0:00:17]} 45. Rf8+ {[%clk 0:00:17]}  Kg6 {[%clk 0:00:18]} 46. f4 {[%clk 0:00:17]}  Nf5+ {[%clk 0:00:17]} 47. Kf2 {[%clk 0:00:14]}  gxf4 {[%clk 0:00:15]} 48. Kf3 {[%clk 0:00:08]}  Nxd4+ {[%clk 0:00:08]} 49. Kxf4 {[%clk 0:00:08]}  Nc6 {[%clk 0:00:07]} 50. Kg4 {[%clk 0:00:07]}  d4 {[%clk 0:00:05]} 51. Kxh4 {[%clk 0:00:04]}  d3 {[%clk 0:00:05]} 52. Rf2 {[%clk 0:00:04]}  Nd4 {[%clk 0:00:04]} 53. Kg4 {[%clk 0:00:04]}  Ne2 {[%clk 0:00:04]} 54. Rf1 {[%clk 0:00:02]}  e5 {[%clk 0:00:03]} 55. Kf3 {[%clk 0:00:02]}  Kf5 {[%clk 0:00:04]} 56. g4+ {[%clk 0:00:01]}  Kg5 {[%clk 0:00:04]} 57. Ke3 {[%clk 0:00:01]}  Kh4 {[%clk 0:00:04]} 58. Rf5 {[%clk 0:00:01]}  Nc1 {[%clk 0:00:01]} 0-1


[Site "https://www.chess.com"]

[Event "Titled Tuesday Blitz May 03 Early 2022"]
[White "Jobava, Baadur"]
[Black "Plotnikov, Pavel"]
[WhiteFideId "13601520"]
[BlackFideId "4170342"]
[WhiteElo "2617"]
[BlackElo "2298"]
[Result "0-1"]
[Round "06"]
[TimeControl "180+1"]
[Date "2022.05.03"]
[WhiteClock "0:00:43"]
[BlackClock "0:00:11"]

1. e4 {[%clk 0:03:00]}  e5 {[%clk 0:02:59]} 2. Nf3 {[%clk 0:03:00]}  Nc6 {[%clk 0:02:59]} 3. d4 {[%clk 0:03:00]}  exd4 {[%clk 0:03:00]} 4. Nxd4 {[%clk 0:03:01]}  Bc5 {[%clk 0:03:00]} 5. Nxc6 {[%clk 0:03:01]}  Qf6 {[%clk 0:03:00]} 6. Qf3 {[%clk 0:03:01]}  bxc6 {[%clk 0:02:58]} 7. Nc3 {[%clk 0:03:00]}  d6 {[%clk 0:02:57]} 8. Be3 {[%clk 0:02:59]}  Qxf3 {[%clk 0:02:51]} 9. gxf3 {[%clk 0:02:58]}  Bxe3 {[%clk 0:02:52]} 10. fxe3 {[%clk 0:02:58]}  Nf6 {[%clk 0:02:52]} 11. Rg1 {[%clk 0:02:57]}  g6 {[%clk 0:02:50]} 12. O-O-O {[%clk 0:02:57]}  Be6 {[%clk 0:02:45]} 13. Ne2 {[%clk 0:02:56]}  c5 {[%clk 0:02:39]} 14. Nf4 {[%clk 0:02:51]}  Ke7 {[%clk 0:02:36]} 15. h4 {[%clk 0:02:50]}  h5 {[%clk 0:02:35]} 16. Bh3 {[%clk 0:02:48]}  Bxh3 {[%clk 0:02:31]} 17. Nxh3 {[%clk 0:02:49]}  Nd7 {[%clk 0:02:27]} 18. Nf4 {[%clk 0:02:48]}  c6 {[%clk 0:02:26]} 19. Nd3 {[%clk 0:02:41]}  Rab8 {[%clk 0:02:20]} 20. f4 {[%clk 0:02:38]}  Rhe8 {[%clk 0:02:07]} 21. c4 {[%clk 0:02:33]}  Kf6 {[%clk 0:01:51]} 22. Nf2 {[%clk 0:02:30]}  Re6 {[%clk 0:01:50]} 23. Rd3 {[%clk 0:02:18]}  Ke7 {[%clk 0:01:31]} 24. Ra3 {[%clk 0:02:06]}  Rb7 {[%clk 0:01:27]} 25. Kc2 {[%clk 0:02:05]}  Nf6 {[%clk 0:01:26]} 26. Kd3 {[%clk 0:02:04]}  Rxb2 {[%clk 0:01:23]} 27. Rxa7+ {[%clk 0:02:03]}  Kf8 {[%clk 0:01:24]} 28. Rf1 {[%clk 0:01:55]}  d5 {[%clk 0:01:19]} 29. e5 {[%clk 0:01:53]}  dxc4+ {[%clk 0:01:20]} 30. Kxc4 {[%clk 0:01:49]}  Nd5 {[%clk 0:01:20]} 31. Nd1 {[%clk 0:01:47]}  Rb1 {[%clk 0:01:12]} 32. Kxc5 {[%clk 0:01:45]}  Nc3 {[%clk 0:01:07]} 33. Nxc3 {[%clk 0:01:44]}  Rxf1 {[%clk 0:01:07]} 34. Ne4 {[%clk 0:01:45]}  Rc1+ {[%clk 0:00:59]} 35. Kd4 {[%clk 0:01:44]}  Rh1 {[%clk 0:00:55]} 36. Ng5 {[%clk 0:01:38]}  Re7 {[%clk 0:00:53]} 37. Nh7+ {[%clk 0:01:38]}  Ke8 {[%clk 0:00:50]} 38. Nf6+ {[%clk 0:01:35]}  Kd8 {[%clk 0:00:41]} 39. Ra8+ {[%clk 0:01:22]}  Kc7 {[%clk 0:00:41]} 40. a4 {[%clk 0:01:23]}  Rxh4 {[%clk 0:00:31]} 41. Ra7+ {[%clk 0:01:22]}  Kd8 {[%clk 0:00:30]} 42. Ra6 {[%clk 0:01:22]}  Kc7 {[%clk 0:00:30]} 43. Kc5 {[%clk 0:01:21]}  Rh1 {[%clk 0:00:27]} 44. Rxc6+ {[%clk 0:01:20]}  Kb7 {[%clk 0:00:27]} 45. Rb6+ {[%clk 0:01:19]}  Ka7 {[%clk 0:00:27]} 46. a5 {[%clk 0:01:19]}  Rc1+ {[%clk 0:00:27]} 47. Kd6 {[%clk 0:01:18]}  Re6+ {[%clk 0:00:25]} 48. Kd7 {[%clk 0:01:18]}  Rxb6 {[%clk 0:00:26]} 49. axb6+ {[%clk 0:01:19]}  Kxb6 {[%clk 0:00:26]} 50. Ke7 {[%clk 0:01:19]}  h4 {[%clk 0:00:27]} 51. Kxf7 {[%clk 0:01:18]}  h3 {[%clk 0:00:27]} 52. e6 {[%clk 0:01:18]}  h2 {[%clk 0:00:26]} 53. e7 {[%clk 0:01:17]}  Rc8 {[%clk 0:00:25]} 54. e8=Q {[%clk 0:01:12]}  Rxe8 {[%clk 0:00:24]} 55. Nxe8 {[%clk 0:01:13]}  h1=Q {[%clk 0:00:24]} 56. Nf6 {[%clk 0:01:12]}  Qf3 {[%clk 0:00:19]} 57. e4 {[%clk 0:01:11]}  Kc6 {[%clk 0:00:18]} 58. e5 {[%clk 0:01:11]}  Qxf4 {[%clk 0:00:18]} 59. e6 {[%clk 0:01:11]}  Qc4 {[%clk 0:00:14]} 60. Ne8 {[%clk 0:00:45]}  g5 {[%clk 0:00:13]} 61. Ng7 {[%clk 0:00:46]}  g4 {[%clk 0:00:13]} 62. Kf6 {[%clk 0:00:45]}  g3 {[%clk 0:00:12]} 63. e7 {[%clk 0:00:44]}  Qf4+ {[%clk 0:00:12]} 64. Nf5 {[%clk 0:00:43]}  Kd7 {[%clk 0:00:11]} 0-1


[Site "https://www.chess.com"]